[Event "Szansa Chess Open 2022"]
[Site "Warsaw"]
[Date "2022.09.18"]
[Round "11.20"]
[White "Kaczmarska, Joanna"]
[Black "Golecki, Jan"]
[Result "1-0"]
[ECO "A04"]
[WhiteElo "1948"]
[BlackElo "2193"]
[Annotator "TA"]
[PlyCount "105"]
[EventDate "2022.09.17"]
[EventCountry "POL"]
[SourceTitle "playchess.com"]
[Source "ChessBase"]
[SourceQuality "1"]
[TimeControl "900+10"]

{[%evp 9,105,-11,8,-29,-18,-31,-43,-71,-71,-75,-76,-187,-189,-229,-157,-176,-187,-183,-141,-158,-173,-243,-148,-281,-201,-219,-217,-214,-175,-316,-266,-247,-229,-379,-289,-306,-300,-434,-298,-275,-290,-293,-290,-376,-297,-282,-256,-394,-255,-540,-533,-489,-69,-59,107,98,156,114,163,170,175,180,169,153,314,323,445,445,368,249,254,243,312,310,336,260,276,284,275,267,235,120,198,64,111,128,287,291,345,328,356,359,335,308,382,377,1049,1039]} 1. Nf3 {[%emt 0:00:01]} Nc6 {[%emt 0:00:02]} 2. g3 {[%emt 0:00:02]} e5 {[%emt 0:00:03]} 3. d3 {[%emt 0:00:04]} d5 {[%emt 0:00:02]} 4. Bg2 {[%emt 0:00:34]} Be6 {[%emt 0:00:06]} 5. O-O {[%emt 0:00:33]} Qd7 {[%emt 0:00:03]} 6. Ng5 {[%emt 0:00:09] A07: Réti Opening: New York and Capablanca Systems.} Bg4 {[%emt 0:00:03][%cal Be6g4,Bg4h5,Bh5g6][%mdl 32]} 7. h3 {[%emt 0:00:39]} Bh5 {[%emt 0:00:09]} 8. g4 {[%emt 0:00:59] Black is slightly better.} Bg6 {[%emt 0:00:02] [#]} 9. e4 $146 {[%emt 0:00:55]} ({Predecessor:} 9. c4 Nge7 10. cxd5 Nxd5 11. Nc3 Nxc3 12. bxc3 h5 13. Qb3 Na5 14. Qd5 Qxd5 15. Bxd5 hxg4 16. hxg4 {0-1 (57) Rasulov,V (2509)-Bogdanovich,S (2570) Hamedan 2017}) 9... dxe4 {[%emt 0:00:02]} 10. f4 {[%emt 0:01:38]} (10. Nxe4 $17 h5 11. g5) 10... exf3 {[%emt 0:00:38]} (10... exd3 11. f5 f6 12. fxg6 fxg5 13. gxh7 $15) 11. Qxf3 {[%emt 0:00:49]} Bc5+ {[%emt 0:00:02]} 12. Be3 {[%emt 0:01:07]} Bxe3+ {[%emt 0:00:43]} 13. Qxe3 {[%emt 0:00:01]} f6 {[%emt 0:00:06]} 14. Bxc6 {[%emt 0:02:59]} Qxc6 {[%emt 0:00:10]} 15. Nc3 {[%emt 0:00:47]} (15. Ne4 $142) 15... Ne7 {[%emt 0:00:02]} (15... fxg5 16. Qxe5+ Ne7 17. Rae1 $17) 16. Rae1 {[%emt 0:00:54]} (16. Nf3 $17) 16... O-O-O {[%emt 0:00:36]} 17. Nge4 {[%emt 0:00:35]} b6 {[%emt 0:00:11]} 18. a4 {[%emt 0:00:15]} h5 {[%emt 0:01:06][%cal Bh7h5,Bh5h4][%mdl 32] White must now prevent ...hxg4.} 19. Nb5 {[%emt 0:01:59]} (19. g5 $142) 19... Kb7 {[%emt 0:00:24]} (19... Qxc2 20. Rc1 Qxd3 21. Rxc7+ Kb8 22. Qxd3 Rxd3 23. Ned6 Rxd6 24. Rxe7 $17) 20. g5 {[%emt 0:00:17]} Nd5 {[%emt 0:00:18]} (20... Qxc2 21. Rc1 Qxd3 22. Qxd3 (22. Rxc7+ Kb8 $15) 22... Rxd3 23. Rxc7+ Kb8 24. Ned6 Rxd6 25. Rxe7 $11) 21. Qg3 {[%emt 0:00:34]} (21. Qf3 {was worth a try.}) 21... h4 {[%emt 0:00:02]} 22. Qf3 {[%emt 0:00:47]} Bh5 {[%emt 0:00:48]} 23. Qf5 {[%emt 0:00:30]} (23. Qg2 $142 a6 24. Kh2) 23... g6 {[%emt 0:00:02]} 24. Qf2 {[%emt 0:00:01][%cal Re4f6]} Nf4 {[%emt 0:00:02]} 25. Kh2 {[%emt 0:00:04] [#]} fxg5 {[%emt 0:01:59]} ({And not} 25... f5 26. Nf6 $17) 26. Nxg5 {[%emt 0:00:01]} Rhf8 {[%emt 0:00:02][%cal Of4d3] Prevents Nf7.} 27. Qd2 {[%emt 0:00:15]} Rf5 {[%emt 0:00:03]} 28. Ne4 {[%emt 0:00:49]} (28. Rxf4 $142 exf4 29. Ne6) 28... Ne6 {[%emt 0:01:10] And now ...Rxf1 would win.} 29. Rxf5 {[%emt 0:00:49]} (29. Qc3) 29... gxf5 $19 {[%emt 0:00:09]} 30. Nf6 {[%emt 0:00:02] [#]} Ng5 $2 {[%emt 0:00:14]} 31. Qxg5 $15 {[%emt 0:00:19]} Qxc2+ $2 {[%emt 0:00:03]} (31... Bf3 $1 $15 32. c3 Rxd3 33. Rxe5 Rd1 34. Qxh4 Bh1) 32. Qg2+ $16 {[%emt 0:00:06]} Qxg2+ {[%emt 0:00:03]} 33. Kxg2 {[%emt 0:00:02]} Bg6 {[%emt 0:00:26]} (33... Bf7 $16 {keeps fighting.}) 34. Rxe5 $18 {[%emt 0:00:25] Hoping for Re7.} a6 {[%emt 0:00:01]} 35. Nc3 {[%emt 0:00:18] Threatens to win with Re7.} Rxd3 {[%emt 0:00:03]} 36. Nfd5 {[%emt 0:00:18]} Rd4 $2 {[%emt 0:00:39]} (36... Bf7 $16 37. Rxf5 Be6) 37. Re7 {[%emt 0:00:17]} Bh5 {[%emt 0:01:22]} 38. Rxc7+ {[%emt 0:00:15]} Kb8 {[%emt 0:00:02]} 39. Rc6 {[%emt 0:00:18]} Rd2+ {[%emt 0:00:03]} 40. Kg1 {[%emt 0:00:09]} Bf3 {[%emt 0:01:26]} 41. Rxb6+ {[%emt 0:00:08]} Ka7 {[%emt 0:00:01]} 42. Rd6 {[%emt 0:00:10]} Rg2+ {[%emt 0:00:02]} 43. Kf1 {[%emt 0:00:05]} Rxb2 {[%emt 0:00:03]} 44. Rd7+ {[%emt 0:00:14]} Kb8 {[%emt 0:00:03]} 45. Ne3 {[%emt 0:00:12]} ({Better is} 45. Ke1 $18) 45... Rb3 {[%emt 0:00:38]} (45... Rh2 $16 46. Nxf5 Rxh3) 46. Ncd5 {[%emt 0:00:12]} ({Inferior is} 46. Nxf5 Rxc3 47. Rd4 Bb7 $11) (46. Rd8+ $18 Kc7 47. Rd3) 46... f4 {[%emt 0:01:24]} (46... Bxd5 $14 {might be stronger.} 47. Nxd5 Rxh3) 47. Kf2 $16 {[%emt 0:00:07]} Be4 $2 {[%emt 0:00:10]} (47... Bxd5 $16 48. Nxd5 Rxh3 49. Nxf4 Ra3) 48. Nxf4 $18 {[%emt 0:00:05]} Rb2+ {[%emt 0:00:15]} 49. Ne2 {[%emt 0:00:01]} Bc6 {[%emt 0:00:01]} 50. Rd4 {[%emt 0:00:12]} Ra2 {[%emt 0:00:04]} 51. Rb4+ {[%emt 0:00:22]} Kc7 {[%emt 0:00:08]} 52. Rxh4 {[%emt 0:00:04]} Bxa4 $2 {[%emt 0:00:02]} (52... Kd8 53. Rh6 Bxa4) 53. Nd5+ {[%emt 0:00:05] Weighted Error Value: White=0.55/Black=0.59} 1-0

[Event "Szansa Chess Open 2022"]
[Site "Warsaw"]
[Date "2022.09.18"]
[Round "11.21"]
[White "Rylski, Tadeusz"]
[Black "Krasenkova, Elena"]
[Result "0-1"]
[ECO "B00"]
[WhiteElo "1733"]
[BlackElo "2124"]
[Annotator "TA"]
[PlyCount "178"]
[EventDate "2022.09.17"]
[EventCountry "POL"]
[SourceTitle "playchess.com"]
[Source "ChessBase"]
[SourceQuality "1"]
[TimeControl "900+10"]

{[%evp 14,178,73,47,48,14,24,10,6,0,0,0,0,-38,-46,-45,-12,-38,-46,-44,-23,-52,-17,-66,-23,-40,-2,-45,-12,-12,-9,-12,-4,-5,-5,-5,0,-25,-23,-26,-4,-4,-9,-5,-4,-12,-4,-18,-5,-18,-5,-11,-11,-11,-11,-11,-18,-18,-18,-18,0,0,0,0,-4,-18,0,0,0,0,0,0,0,0,0,0,22,3,22,0,0,0,11,0,0,0,1,8,127,110,106,5,21,0,0,0,0,0,0,0,0,-8,0,0,0,0,0,0,0,0,0,0,0,0,0,0,0,0,0,0,0,0,0,0,0,0,0,0,0,0,0,0,0,-8,-8,-8,0,-8,-8,-8,-8,-8,0,0,0,-8,-8,-8,-8,-8,-8,-8,-8,-8,-8,-8,-8,-29981,-29981,-29980,-29981,-29986,-29987,-29990,-29991,-29994,-29995]} 1. e4 {[%emt 0:00:01]} d6 {[%emt 0:00:01]} 2. d4 {[%emt 0:00:05]} c6 {[%emt 0:00:03]} 3. c4 {[%emt 0:00:23]} g6 {[%emt 0:00:01]} 4. Nc3 {[%emt 0:00:06]} Bg7 {[%emt 0:00:01]} 5. Nf3 {[%emt 0:00:11]} Nf6 {[%emt 0:00:04]} 6. Be2 {[%emt 0:00:13]} O-O {[%emt 0:00:07]} 7. O-O {[%emt 0:00:03]} Qc7 {[%emt 0:00:10] 7...e5 is the modern continuation.} 8. Qc2 {[%emt 0:00:37]} e5 {[%emt 0:00:10] E91: King's Indian: Classical: 6 Be2, unusual replies including 6...c5 and 6...Bg4.} 9. dxe5 {[%emt 0:00:26]} dxe5 {[%emt 0:00:03]} 10. Be3 {[%emt 0:00:02]} Bg4 {[%emt 0:02:43] [#] The position is equal.} 11. Bc5 $146 {[%emt 0:01:26]} ({Predecessor:} 11. Nd2 Bxe2 12. Nxe2 Nbd7 13. Rad1 Rfe8 14. h3 Nh5 15. Nf3 Nf8 16. Rd2 Ne6 17. Rfd1 Red8 {0-1 (41) Fodor,T (2002)-Dombai,I (2213) Hungary 2018}) 11... Rd8 {[%emt 0:00:22]} 12. Rad1 {[%emt 0:00:26]} Na6 {[%emt 0:00:18]} 13. Ba3 {[%emt 0:00:36]} Bxf3 {[%emt 0:01:16]} 14. Bxf3 {[%emt 0:00:03]} Rd4 {[%emt 0:01:18]} 15. Ne2 {[%emt 0:02:01]} Rxd1 {[%emt 0:00:19]} 16. Rxd1 {[%emt 0:00:02]} Rd8 {[%emt 0:00:03] Against Bd6} 17. Nc3 {[%emt 0:00:26]} Rd4 {[%emt 0:01:14]} 18. Ne2 {[%emt 0:01:58]} (18. Rxd4 $11 {feels stronger.} exd4 19. Nb1) 18... Rd7 {[%emt 0:00:01] Black is more active.} 19. Nc1 {[%emt 0:02:25]} h5 {[%emt 0:02:00]} 20. h3 {[%emt 0:00:32]} (20. b4 {is more complex.} c5 21. b5 Qa5 22. bxa6 Rxd1+ 23. Qxd1 Qxa3 24. axb7 Qb4 25. g3) 20... c5 {[%emt 0:01:48]} 21. Rxd7 {[%emt 0:00:53]} Qxd7 {[%emt 0:00:14]} 22. Qd3 {[%emt 0:00:07]} Bh6 {[%emt 0:01:52]} 23. Qxd7 {[%emt 0:00:08]} Nxd7 {[%emt 0:00:01]} 24. Nd3 {[%emt 0:00:03]} b6 {[%emt 0:00:01]} 25. b4 {[%emt 0:01:35]} cxb4 {[%emt 0:00:10]} 26. Nxb4 {[%emt 0:00:02]} Nxb4 {[%emt 0:01:02]} 27. Bxb4 $11 {[%emt 0:00:02][%mdl 4096] Endgame KBB-KBN} Bf8 {[%emt 0:00:01]} 28. Bc3 {[%emt 0:00:16]} f6 {[%emt 0:00:02]} 29. Kf1 {[%emt 0:00:08]} Bc5 {[%emt 0:00:01]} 30. Ke2 {[%emt 0:00:08]} Kf7 {[%emt 0:00:02]} 31. h4 {[%emt 0:00:21]} Nb8 {[%emt 0:00:02]} 32. g4 {[%emt 0:00:12]} hxg4 {[%emt 0:00:07]} 33. Bxg4 {[%emt 0:00:06]} Ke7 {[%emt 0:00:06]} 34. f3 {[%emt 0:00:40]} Nc6 {[%emt 0:00:02]} 35. Kd3 {[%emt 0:00:02]} Bb4 {[%emt 0:00:30]} 36. Bb2 {[%emt 0:00:12]} a5 {[%emt 0:01:07]} 37. h5 {[%emt 0:00:11]} gxh5 {[%emt 0:00:04]} 38. Bxh5 {[%emt 0:00:02]} Bc5 {[%emt 0:00:12]} 39. Bc3 {[%emt 0:00:13]} a4 {[%emt 0:00:10]} 40. Bg4 {[%emt 0:00:32]} Bb4 {[%emt 0:00:49]} 41. Bb2 {[%emt 0:00:39]} a3 {[%emt 0:00:14]} 42. Bc1 {[%emt 0:00:32]} Bc5 {[%emt 0:00:59] [#] Threatens to win with ...Nb4+.} 43. Kc3 {[%emt 0:00:09]} Nd4 {[%emt 0:00:19]} 44. f4 {[%emt 0:00:03]} Kd6 {[%emt 0:00:11]} 45. Bd1 {[%emt 0:00:44]} Nc6 {[%emt 0:00:09]} 46. Kb3 {[%emt 0:00:28]} Na5+ {[%emt 0:00:05]} 47. Kc3 {[%emt 0:00:09]} Bd4+ {[%emt 0:00:34]} 48. Kd3 {[%emt 0:00:04]} Bb2 {[%emt 0:00:10]} 49. Bd2 {[%emt 0:00:13]} Nc6 {[%emt 0:00:07] Inhibits Bb4+.} 50. Ba4 {[%emt 0:01:01]} Nd4 {[%emt 0:00:23]} (50... exf4 $11 51. Bxc6 (51. Bxf4+ Ne5+ 52. Bxe5+ Bxe5 $11) 51... Kxc6) 51. Bb4+ {[%emt 0:00:05]} Ke6 {[%emt 0:00:01]} 52. fxe5 {[%emt 0:00:14]} ({Only move:} 52. f5+ $16 Kf7 53. Bd6) 52... Kxe5 {[%emt 0:00:28]} 53. c5 {[%emt 0:00:05]} (53. Be1 $5 {[%cal Re1g3]}) 53... bxc5 {[%emt 0:00:07]} 54. Bxc5 {[%emt 0:00:01]} Ne6 {[%emt 0:00:05]} 55. Be3 {[%emt 0:00:23]} Bd4 {[%emt 0:00:22]} 56. Bxd4+ {[%emt 0:00:45]} Nxd4 {[%emt 0:00:01] KB-KN} 57. Bd7 {[%emt 0:00:10]} Nf3 {[%emt 0:00:08]} (57... Nb3 $5 {[%cal Rb3c5]} 58. Kc2 (58. axb3 $2 a2 $19) 58... Nd4+ 59. Kd3 Ne6 $11) 58. Ke3 {[%emt 0:00:30]} Ne1 {[%emt 0:00:02]} 59. Ba4 {[%emt 0:00:12]} Ng2+ {[%emt 0:00:02]} 60. Kf3 {[%emt 0:00:04]} Nf4 {[%emt 0:00:04]} 61. Ke3 {[%emt 0:00:08]} Ne6 {[%emt 0:00:02]} 62. Bb3 {[%emt 0:00:13]} Nc5 {[%emt 0:00:39]} 63. Bc2 {[%emt 0:00:02]} Ne6 {[%emt 0:00:06]} 64. Bb3 {[%emt 0:00:02]} Nd4 {[%emt 0:00:04]} 65. Bd1 $1 {[%emt 0:00:13]} Nb5 {[%emt 0:00:06]} 66. Kd3 {[%emt 0:00:19]} Nd6 {[%emt 0:00:12]} 67. Bf3 {[%emt 0:00:07]} Kf4 {[%emt 0:00:01]} 68. Bg2 {[%emt 0:00:19]} Nf7 {[%emt 0:00:16]} 69. Kd4 {[%emt 0:00:29]} Ng5 {[%emt 0:00:06]} 70. Kd5 {[%emt 0:00:11]} Kg3 {[%emt 0:00:35]} 71. Bf1 {[%emt 0:00:01]} Kf2 {[%emt 0:00:05]} 72. Bd3 {[%emt 0:00:09]} Ke3 {[%emt 0:00:02]} 73. Bb1 {[%emt 0:00:02]} Nf3 {[%emt 0:00:29]} (73... Kd2 $5) 74. Bc2 {[%emt 0:00:20]} Nd4 {[%emt 0:00:15]} 75. Ba4 {[%emt 0:00:09]} Ne2 {[%emt 0:00:09] ( -> ...Nc3+)} 76. e5 {[%emt 0:00:29]} fxe5 {[%emt 0:00:28]} 77. Kxe5 {[%emt 0:00:01]} Nc3 {[%emt 0:00:02]} (77... Nc1 $5 78. Kd5 $8 Kd3 79. Bb5+ Kc3 $11) 78. Bb3 {[%emt 0:00:01]} Kd3 {[%emt 0:00:02]} 79. Kd6 {[%emt 0:00:05]} Ne2 {[%emt 0:00:07]} 80. Kc5 {[%emt 0:00:05]} Kc3 {[%emt 0:00:01]} 81. Kb5 {[%emt 0:00:32]} Nd4+ {[%emt 0:00:09]} 82. Ka4 {[%emt 0:00:02]} Kb2 {[%emt 0:00:01]} 83. Bc4 {[%emt 0:00:16]} Nf3 {[%emt 0:00:07]} 84. Kb4 {[%emt 0:00:04]} Ne5 {[%emt 0:00:13]} 85. Be2 $2 {[%emt 0:00:18][%mdl 8192] [#] This costs White the game.} (85. Bg8 $11) 85... Kxa2 {[%emt 0:00:07] Black mates.} 86. Kc3 {[%emt 0:00:02]} Kb1 {[%emt 0:00:13]} 87. Bd1 {[%emt 0:00:21]} a2 {[%emt 0:00:04]} 88. Bc2+ {[%emt 0:00:01]} Kc1 {[%emt 0:00:02]} 89. Kb3 {[%emt 0:00:19]} a1=Q {[%emt 0:00:03] Weighted Error Value: White=0.14 (very precise) /Black=0.11 (very precise)} 0-1

[Event "Szansa Chess Open 2022"]
[Site "Warsaw"]
[Date "2022.09.18"]
[Round "11.22"]
[White "Stefaniuk, Zbigniew"]
[Black "Lewandowski, Rafal"]
[Result "1/2-1/2"]
[ECO "B42"]
[WhiteElo "1608"]
[BlackElo "2183"]
[Annotator "TA"]
[PlyCount "61"]
[EventDate "2022.09.17"]
[EventCountry "POL"]
[SourceTitle "playchess.com"]
[Source "ChessBase"]
[SourceQuality "1"]
[TimeControl "900+10"]

{[%evp 17,61,31,39,3,14,0,0,-10,0,-8,-9,-29,25,28,66,72,154,154,124,81,93,91,71,52,53,42,110,84,96,94,94,100,100,94,96,89,102,102,102,100,106,0,96,0,113,-7]} 1. e4 {[%emt 0:00:01]} c5 {[%emt 0:00:01]} 2. Nf3 {[%emt 0:00:01]} e6 {[%emt 0:00:01]} 3. d4 {[%emt 0:00:02]} cxd4 {[%emt 0:00:01]} 4. Nxd4 {[%emt 0:00:02]} a6 {[%emt 0:00:03]} 5. Bd3 {[%emt 0:00:03]} Bc5 {[%emt 0:00:02]} 6. Nb3 {[%emt 0:00:10]} Ba7 {[%emt 0:00:14]} 7. O-O {[%emt 0:00:24]} Nc6 {[%emt 0:00:46]} 8. Qe2 $1 {[%emt 0:01:07] The main line 8.Qe2 scores better than 8.Qg4.} d6 {[%emt 0:02:26]} 9. Be3 {[%emt 0:00:10]} Nf6 {[%emt 0:00:13]} 10. N1d2 {[%emt 0:04:18] B42: Sicilian: Kan Variation: 5 Bd3.} O-O {[%emt 0:00:44]} 11. h3 {[%emt 0:01:02]} e5 {[%emt 0:04:44] [#]} 12. c3 $146 {[%emt 0:04:05][%cal Bc2c3,Bc3c4,Bc4c5][%mdl 32] The position is equal.} ({Predecessor:} 12. Rad1 Be6 13. c4 a5 14. Nf3 Bxe3 15. fxe3 Nd7 16. a3 a4 17. Nc1 Nc5 18. Na2 Na5 19. Nd2 Nxd3 20. Qxd3 b5 21. Nc3 Nxc4 {0-1 (21) Carnicelli,V (2195)-Horvath,C (2540) Montesilvano 2015}) 12... Be6 {[%emt 0:00:22]} 13. Rad1 {[%emt 0:00:58]} b5 {[%emt 0:00:50]} 14. c4 {[%emt 0:01:09]} b4 {[%emt 0:01:53]} ({Black should try} 14... Bxe3 15. Qxe3 Nb4) 15. c5 $11 {[%emt 0:01:02]} a5 {[%emt 0:00:45]} 16. Bb5 {[%emt 0:00:43]} Nd4 {[%emt 0:02:12]} (16... Rc8 $142) 17. Bxd4 $16 {[%emt 0:01:37]} ({Don't do} 17. Nxd4 $6 exd4 18. Bxd4 dxc5 $14) 17... exd4 {[%emt 0:00:03]} 18. Nxd4 {[%emt 0:00:08] [#] Hoping for Nc6.} Bxc5 {[%emt 0:01:05]} 19. Nxe6 {[%emt 0:00:11]} fxe6 {[%emt 0:00:02]} 20. Nb3 {[%emt 0:00:24]} Qb6 {[%emt 0:00:09][%cal Of6h5]} 21. Bc4 {[%emt 0:00:29]} d5 {[%emt 0:00:18]} (21... Rae8 $14) 22. Nxc5 {[%emt 0:00:26]} Qxc5 {[%emt 0:00:02]} 23. exd5 {[%emt 0:00:03]} exd5 {[%emt 0:00:01] [#]} 24. Bxd5+ {[%emt 0:00:14]} Nxd5 {[%emt 0:00:14]} 25. Qe6+ {[%emt 0:00:02]} Kh8 {[%emt 0:00:08] And now ...Nf4 would win.} 26. Qxd5 {[%emt 0:00:15]} Qe7 {[%emt 0:00:24]} 27. Rfe1 {[%emt 0:00:20]} Qf6 {[%emt 0:00:01]} 28. Qd4 {[%emt 0:00:08] Active counter play!} Qf7 {[%emt 0:00:07]} 29. Qd5 {[%emt 0:00:07]} ({Better is} 29. b3 $16) 29... Qf6 {[%emt 0:00:02]} (29... Qxf2+ $11 {keeps the balance.} 30. Kh2 Qxb2) 30. Qd4 {[%emt 0:00:05]} Qf7 $1 {[%emt 0:00:01]} 31. Qd5 {[%emt 0:00:17] Weighted Error Value: White=0.21 (precise) /Black=0.24 (precise)} (31. b3 $16) 1/2-1/2

[Event "Szansa Chess Open 2022"]
[Site "Warsaw"]
[Date "2022.09.18"]
[Round "11.24"]
[White "Borawski, Jakub"]
[Black "Seredyn, Dominik"]
[Result "1/2-1/2"]
[ECO "B27"]
[WhiteElo "2222"]
[BlackElo "1720"]
[Annotator "TA"]
[PlyCount "69"]
[EventDate "2022.09.17"]
[EventCountry "POL"]
[SourceTitle "playchess.com"]
[Source "ChessBase"]
[SourceQuality "1"]
[TimeControl "900+10"]

{[%evp 25,69,10,11,5,40,0,0,-5,39,-28,-35,-55,-37,-41,-17,-17,-13,-17,-12,-79,-75,-67,-83,-81,-72,-81,-28,-28,-28,-28,-29,-28,0,-5,0,0,0,0,0,-2,0,0,0,0,0,0]} 1. e4 {[%emt 0:00:01]} c5 {[%emt 0:00:01]} 2. Nf3 {[%emt 0:00:02]} g6 {[%emt 0:00:01]} 3. d4 {[%emt 0:00:02]} cxd4 {[%emt 0:00:02]} 4. Nxd4 {[%emt 0:00:02]} Bg7 {[%emt 0:00:01]} 5. Nc3 {[%emt 0:00:02]} Nc6 {[%emt 0:00:01]} 6. Nde2 {[%emt 0:00:01]} Nf6 {[%emt 0:00:07]} 7. g3 {[%emt 0:00:02]} O-O {[%emt 0:00:14]} 8. Bg2 {[%emt 0:00:01]} d6 {[%emt 0:00:46]} 9. O-O {[%emt 0:00:02]} Bd7 {[%emt 0:00:14]} 10. a4 {[%emt 0:00:09]} a6 {[%emt 0:00:04]} 11. Nd5 {[%emt 0:00:14]} Rb8 {[%emt 0:01:52]} 12. h3 {[%emt 0:02:54]} b5 {[%emt 0:01:49]} 13. axb5 {[%emt 0:00:03]} axb5 {[%emt 0:00:02]} 14. Bg5 {[%emt 0:00:33] B70: Sicilian Dragon: 6 g3 and 6 Be2 (without a later Be3).} Ne8 {[%emt 0:00:56] [#]} 15. Ra6 $146 {[%emt 0:01:10][%cal Oa6c6]} ({Predecessor:} 15. Qc1 Nc7 16. Rd1 b4 17. Bh6 Qc8 18. Bxg7 Kxg7 19. b3 Nb5 20. Qb2+ e5 21. Kh2 Be6 {½-½ (51) Kovchan,A (2507)-Tukhaev,A (2517) Kharkov 2007}) 15... h6 $1 {[%emt 0:02:54]} 16. Be3 $132 {[%emt 0:00:30][%mdl 2048] White has counterplay} Nc7 {[%emt 0:00:48]} (16... e6 $5 {[%cal Re6d5]} 17. Nb6 Bc8 18. Nxc8 Qxc8 $11) 17. Nxc7 {[%emt 0:01:59]} (17. Ra2 $14) 17... Qxc7 $11 {[%emt 0:00:03]} 18. c3 {[%emt 0:00:01]} Qc8 {[%emt 0:00:17]} 19. Qa1 {[%emt 0:00:21]} Ne5 {[%emt 0:00:29][%cal Bc6e5,Be5c4,Bc4e3][%mdl 32] Threatens to win with ...b4.} 20. Nf4 $1 {[%emt 0:00:21]} Nc4 {[%emt 0:00:54]} 21. Nd5 {[%emt 0:00:36]} Re8 {[%emt 0:00:13]} 22. Kh2 {[%emt 0:01:01]} (22. Ra7 $11 {remains equal.}) 22... Nxe3 $17 {[%emt 0:00:14]} 23. Nxe3 {[%emt 0:00:11]} b4 {[%emt 0:00:55][%cal Rb4c3]} 24. Rc1 {[%emt 0:00:31]} bxc3 {[%emt 0:01:27]} 25. bxc3 {[%emt 0:00:01]} Ra8 {[%emt 0:00:42]} ({Black should play} 25... Qc5 $17) 26. Rxa8 $1 $11 {[%emt 0:00:31]} Qxa8 {[%emt 0:00:02]} 27. Qxa8 {[%emt 0:00:25]} Rxa8 {[%emt 0:00:02]} 28. e5 $1 {[%emt 0:00:07]} Rc8 {[%emt 0:00:30]} 29. Nd5 {[%emt 0:01:04] The position is equal.} Kf8 {[%emt 0:00:24]} 30. exd6 {[%emt 0:00:28]} exd6 {[%emt 0:00:02]} 31. Nb6 {[%emt 0:00:35][%csl LRc8,LRd7]} Rc7 {[%emt 0:00:06]} 32. Rd1 {[%emt 0:01:40]} Bc6 {[%emt 0:01:46]} 33. Rxd6 {[%emt 0:00:33]} Bxg2 {[%emt 0:00:05]} 34. Kxg2 {[%emt 0:00:01]} Bxc3 {[%emt 0:00:10]} 35. Rd8+ {[%emt 0:00:46] Weighted Error Value: White=0.16 (very precise) /Black=0.13 (very precise)} 1/2-1/2